Cogmind - Beta 16 @@@ ROGUE MODE // 2025.11.29 @ 11:25:44 Player: The Overplayer Result: Destroyed by B8-0CP(R) with Subdweller Beam Cannon Performance ------------- Evolutions (0) 0 Regions Visited (2) 400 Robots Destroyed (7) 35 Value Destroyed (61) 61 Prototype IDs (0) 0 Alien Tech Used (0) 0 Bonus (0) 0 TOTAL SCORE: 496 Bonus ------- None Cogmind --------- Core Integrity 0/250 Matter 300/300 Energy 100/100 System Corruption 0% Temperature Cool (9) Movement Core (150) Ox2 Location -10/Subcaves Parts ------- > --- POWER (1) -------- (None) > --- PROPULSION (2) --- (None) > --- UTILITY (2) ------ Small Storage Unit Seismic Detector > --- WEAPON (2) ------- Hammer > --- INVENTORY (8) ---- Light Armor Plating Medium Laser Light Assault Rifle Peak State ------------ > --- POWER ------------ Light Ion Engine > --- PROPULSION ------- Aluminum Leg Aluminum Leg > --- UTILITY ---------- Small Storage Unit Seismic Detector > --- WEAPON ----------- Medium Laser Medium Laser > --- INVENTORY -------- Light Assault Rifle [Rating: 7] Favorites ----------- Power Light Ion Engine Engine Light Ion Engine Propulsion Aluminum Leg Leg Aluminum Leg Utility Small Storage Unit Device Seismic Detector Storage Small Storage Unit Weapon Medium Laser Energy Gun Medium Laser Ballistic Gun Light Assault Rifle Impact Weapon Hammer Build | -11 -10 -10 ------- Run | Yrd Mat Sub Slots Evolved . | . . . Power . | . . . Propulsion . | . . . Utility . | . . . Weapon . | . . . Parts Attached 9 | 8 1 . Power 1 | 1 . . Engine 1 | 1 . . Core . | . . . Reactor . | . . . Propulsion 2 | 2 . . Treads . | . . . Leg 2 | 2 . . Wheel . | . . . Hover . | . . . Flight . | . . . Utility 2 | 2 . . Device 1 | 1 . . Storage 1 | 1 . . Processor . | . . . Hackware . | . . . Protection . | . . . Artifact . | . . . Weapon 4 | 3 1 . Energy Gun 2 | 2 . . Energy Cannon . | . . . Ballistic Gun 1 | 1 . . Ballistic Cannon . | . . . Launcher . | . . . Special Weapon . | . . . Impact Weapon 1 | . 1 . Slashing Weapon . | . . . Piercing Weapon . | . . . Special Melee Weapon . | . . . Unidentified Prototypes . | . . . Parts Lost 4 | . . 4 Power 1 | . . 1 Propulsion 2 | . . 2 Utility . | . . . Weapon 1 | . . 1 Highest Loss Streak 2 | . . 2 To Critical Strikes . | . . . Average Backups 1 | . 1 3 Power . | . . . Propulsion . | . . . Utility . | . . 1 Weapon 1 | . 1 2 Tool/Special . | . . . Unused Backups . | . . . Power . | . . . Propulsion . | . . . Utility . | . . . Weapon . | . . . Tool/Special . | . . . Average Slot Usage (%) 97 | . 100 92 Engine 12 | . 14 10 Leg 26 | . 28 24 Device 14 | . 14 14 Storage 14 | . 14 14 Energy Gun 26 | . 26 26 Impact Weapon 1 | . 1 . Peak Build Rating 7 | 7 7 7 Average Rating 6 | 5 7 6 On Entrance 4 | . 7 7 Avg Prop Armor Cover (%) . | . . . Naked Turns . | . . . Heaviest Build 13 | 13 13 13 Greatest Support 20 | 20 20 20 Greatest Overweight (x) . | . . . Average Overweight (x) . | . . . Largest Inventory Capacity 8 | 8 8 8 Average Capacity 7 | 7 8 8 Most Carried 3 | 1 3 3 Average Carried 1 | . 1 3 Final Capacity 8 | 8 8 8 Final Carried 3 | 1 3 3 Class Distribution -------------------- 100% | Mutant Dominant Class ---------------- Mutant | -10/Materials Mutant | -10/Subcaves Resources | -11 -10 -10 ----------- Run | Yrd Mat Sub Matter Collected 300 | 262 17 21 Remotely . | . . . Salvage Created 193 | 85 69 39 Parts 11 | 4 4 3 Haulers Intercepted 1 | . 1 . Recyclers Shooed . | . . . Parts Field Recycled . | . . . Retrieved Matter . | . . . Parts Self-Destructed 8 | . . 8 Prevented . | . . . Parts Restored . | . . . Kills | -11 -10 -10 ------- Run | Yrd Mat Sub Combat Hostiles Destroyed 3 | . . 3 Guns 3 | . . 3 Classes Destroyed 5 | 2 2 1 Tunneler 1 | 1 . . Hauler 1 | . 1 . Recycler 1 | 1 . . Watcher 1 | . 1 . Swarmer 3 | . . 3 Best Kill Streak 3 | 2 1 3 Combat Bots Only 3 | . . 3 Max Kills in Single Turn 1 | 1 1 1 Gunslinging . | . . . Exploded . | . . . Melee . | . . . Uniques/NPCs Destroyed . | . . . Combat | -11 -10 -10 -------- Run | Yrd Mat Sub Hostile Shots Fired 70 | . . 70 Missed 25 | . . 25 Hits 45 | . . 45 Projectile 45 | . . 45 Critical Strikes 1 | . . 1 Damage Taken 720 | . . 720 Core 268 | . . 268 Absorbed by Shields . | . . . Core Remaining (%) 100 | 100 . . Volleys Fired 12 | 4 1 7 Largest 2 | 2 2 2 Hottest 100 | 100 100 100 Shots Fired 24 | 8 2 14 Gun 24 | 8 2 14 Cannon . | . . . Launcher . | . . . Special . | . . . Kinetic . | . . . Thermal 24 | 8 2 14 Explosive . | . . . Electromagnetic . | . . . Robot Hit Streak 4 | 3 1 4 Robot Miss Streak 3 | 3 1 3 Penetration Max . | . . . Secondary Targets . | . . . Shots Hit Robots 16 | 4 2 10 Core Hits 7 | 3 1 3 Critical Kills . | . . . Critical Parts Destroyed . | . . . Critical Strikes 2 | . . 2 Smash 2 | . . 2 Melee Attacks 6 | . 1 5 Impact 6 | . 1 5 Slashing . | . . . Piercing . | . . . Sneak Attacks 1 | . 1 . Combat Hostiles . | . . . Follow-up Attacks . | . . . Damage Inflicted 301 | 49 86 166 Guns 162 | 49 12 101 Cannons . | . . . Explosions . | . . . Melee 139 | . 74 65 Ramming . | . . . Kinetic . | . . . Thermal 162 | 49 12 101 Explosive . | . . . Electromagnetic . | . . . Impact 139 | . 74 65 Slashing . | . . . Piercing . | . . . Highest Corruption . | . . . Average Corruption . | . . . Corruption Purged . | . . . Corruption Blocked . | . . . Overload Shots . | . . . Overflow Damage 52 | . 52 . Projectiles . | . . . Explosions . | . . . Melee 52 | . 52 . Knockbacks . | . . . Impact . | . . . Kinetic . | . . . Secondary . | . . . Self-Inflicted Damage . | . . . Shots . | . . . Rammed . | . . . Targets Rammed . | . . . Kicked . | . . . Crushed . | . . . Highest Temperature 78 | 78 39 . Average Temperature 28 | 30 20 . Received Heat Transfer 87 | . . 87 Siege Activations . | . . . Martial Activations . | . . . Shielding Activations . | . . . Robots Disrupted . | . . . Combat Hostiles . | . . . Robots Corrupted 1 | . 1 . Combat Hostiles . | . . . Parts Fried 1 | . 1 . Impact Corruptions 1 | . 1 . Robots Melted . | . . . Combat Hostiles . | . . . Parts Melted . | . . . Heat Transferred 481 | 148 37 296 Parts Sabotaged . | . . . Parts Stolen . | . . . Parts Stripped . | . . . Power Chain Reactions . | . . . Alert | -11 -10 -10 ------- Run | Yrd Mat Sub Maximum Alert Level . | . . . Low Security (%) 100 | 100 100 . Level 1 . | . . . Level 2 . | . . . Level 3 . | . . . Level 4 . | . . . Level 5 . | . . . High Security . | . . . Max Security . | . . . Peak Influence 15 | 5 15 . Initial . | . . . Average 2 | 1 2 . Influence Increases 122 | 10 42 70 Destroy 0b10 Robot/C 60 | . . 60 Destroy 0b10 Robot/NC 20 | 10 10 . Destroy Leader 14 | . 4 10 Successful Hack 13 | . 13 . Lose Combat Pursuer 15 | . 15 . Influence Decreases 122 | 10 42 70 Time Decay 102 | 10 42 50 Lost Part 20 | . . 20 Squads Dispatched . | . . . Investigation . | . . . Extermination . | . . . Reinforcement . | . . . Assault . | . . . Garrison . | . . . Intercept . | . . . Searches Triggered . | . . . Construction Impeded . | . . . Haulers Reinforced . | . . . Active Scanning Responses . | . . . Cargo Convoy Interrupts . | . . . Stealth | -11 -10 -10 --------- Run | Yrd Mat Sub Distress Signals 1 | . 1 . Communications Jammed . | . . . Distress Signals . | . . . Times Spotted 8 | . 1 7 Peak Tracking Total 4 | . 2 4 Tactical Retreats 1 | . 1 . Traps | -11 -10 -10 ------- Run | Yrd Mat Sub Traps Triggered . | . . . Indirectly . | . . . Trap Hack Attempts . | . . . Triggered . | . . . Disarmed . | . . . Reprogrammed . | . . . Reused . | . . . Traps Extracted . | . . . Installed . | . . . Triggered . | . . . Machines | -11 -10 -10 ---------- Run | Yrd Mat Sub Machines Disabled . | . . . Max in Single Turn . | . . . Machines Repaired . | . . . Machines Dismantled . | . . . Machines Sabotaged . | . . . Overloaded Fab Kills . | . . . Hacking | -11 -10 -10 --------- Run | Yrd Mat Sub Machines Accessed 3 | . 3 . Terminals 3 | . 3 . Fabricators . | . . . Repair Stations . | . . . Recycling Units . | . . . Scanalyzers . | . . . Garrison Access . | . . . Total Hacks 6 | . 6 . Successful 2 | . 2 . Failed 4 | . 4 . Catastrophic 1 | . 1 . Database Lockouts . | . . . Manual 6 | . 6 . Terminals 6 | . 6 . Fabricators . | . . . Repair Stations . | . . . Recycling Units . | . . . Scanalyzers . | . . . Garrison Access . | . . . Terminal Hacks 2 | . 2 . Terminal Index 1 | . 1 . Registered Components 1 | . 1 . Fabricator Hacks . | . . . Repair Station Hacks . | . . . Recycling Unit Hacks . | . . . Scanalyzer . | . . . Garrison Access Hacks . | . . . Unauthorized Hacks . | . . . Terminals . | . . . Fabricators . | . . . Repair Stations . | . . . Recycling Units . | . . . Scanalyzers . | . . . Garrison Access . | . . . Data Cores Recovered . | . . . Used . | . . . Hacking Detections 3 | . 3 . Full Trace Events . | . . . Feedback Events . | . . . Feedback Blocked . | . . . Robot Schematics Acquired . | . . . Robots Built . | . . . Authchips . | . . . Time . | . . . Total Robot Build Rating . | . . . Part Schematics Acquired . | . . . Parts Built . | . . . Authchips . | . . . Time . | . . . Total Part Build Rating . | . . . Part Studies Acquired . | . . . Parts Repaired . | . . . Time . | . . . Parts Recycled . | . . . Recycled Matter . | . . . Retrieved Matter . | . . . Retrieved Components . | . . . Parts Scanalyzed . | . . . Part Schematics Acquired . | . . . Parts Damaged . | . . . Bothacking | -11 -10 -10 ------------ Run | Yrd Mat Sub Used RIF Installer . | . . . Robots Hacked . | . . . Non-combat . | . . . Combat . | . . . Robot Hacks Applied . | . . . Relay Couplers Released . | . . . Fabnet Peak Effective % . | . . . Robots Rewired . | . . . Allies Hacked . | . . . Hacks Repelled . | . . . Allies | -11 -10 -10 -------- Run | Yrd Mat Sub Total Allies . | . . . Largest Group . | . . . Highest-Rated Group . | . . . Highest-Rated Ally . | . . . Total Orders . | . . . Ally Attacks . | . . . Total Damage . | . . . Kills . | . . . Allies Corrupted . | . . . Allies Melted . | . . . Intel | -11 -10 -10 ------- Run | Yrd Mat Sub Active Infowar (turns) 445 | 24 245 176 Seismic 445 | 24 245 176 Robot Analysis Total . | . . . Derelict Logs Recovered 1 | . . 1 Drone Launches . | . . . Drone Recoveries . | . . . Exploration | -11 -10 -10 ------------- Run | Yrd Mat Sub Turns Passed 516 | 95 245 176 Spaces Moved 309 | 62 132 115 Core 5 | 5 . . Treads . | . . . Legs 304 | 57 132 115 Wheels . | . . . Hover . | . . . Flight . | . . . Fastest Speed 50 | 50 120 120 Average Speed 118 | 114 120 120 Slowest Speed 120 | 120 120 120 Overloaded Moves . | . . . Propulsion Burnouts . | . . . Robots Hopped . | . . . Potential Cave-ins . | . . . Cave-ins Triggered . | . . . Exploration Rate (%) 15 | 6 26 14 Regions Visited 2 Branch Regions 1 Pre-discovered Areas . | . . . Known Exits Taken . | . . . Unknown Exits Taken 2 | 1 1 . Scrap Searched . | . . . Spaces Dug 1 | . . 1 Terrain Destroyed 1 | . . 1 Melee 1 | . . 1 Projectile . | . . . AOE . | . . . Terrain Rammed . | . . . Walls Destroyed . | . . . Machines Disabled . | . . . Actions | -11 -10 -10 --------- Run | Yrd Mat Sub Total 418 | 74 214 130 Wait 79 | . 78 1 Move 307 | 61 131 115 Hop . | . . . Pick Up 3 | 1 2 . Fast Attach 7 | 7 . . Attach . | . . . Detach . | . . . Swap 4 | 1 1 2 Drop . | . . . Fire 12 | 4 1 7 Melee 6 | . 1 5 Ram . | . . . Kick . | . . . Crush . | . . . Escape Stasis . | . . . Rewire . | . . . Trap . | . . . Miscellaneous . | . . . Route ------- -11/Scrapyard -10/Materials (discovered 2 exits: [*Min] / [*Sub]) -10/Subcaves History --------- Turn | Location | Event 3 | -11/Scrapyard | Discovered new exit (range 15) 96 | -11/Scrapyard | Entered Materials 290 | -10/Materials | Discovered new exit (range 8) 306 | -10/Materials | Build established: Mutant 318 | -10/Materials | Discovered new exit (range 8) 341 | -10/Materials | Entered Subcaves 354 | -10/Subcaves | Learned 2 Materials zone layouts 510 | -10/Subcaves | Core integrity fell below 50% 516 | -10/Subcaves | Core integrity fell below 20% 517 | -10/Subcaves | Destroyed by B8-0CP(R) with Subdweller Beam Cannon Last Messages --------------- 00354_ Acquired derelict log, extracted data. Data stored: Materials zone layouts (x2). 00378_ S-10 Pest destroyed. 00380_ Subatomizers dissect the Flight Unit. 00381_ Destroyed Flight Unit. 00381_ S-10 Pest destroyed. 00384_ Flight Unit fries itself beyond repair. 00384_ S-10 Pest destroyed. 00387_ Acquired 12 matter. 00388_ Lgt. Ion Engine fries itself beyond repair. 00390_ Acquired 9 matter. 00399_ Lgt. Ion Engine fries itself beyond repair. 00473_ Lgt. Ion Engine destroyed. 00475_ Aluminum Leg destroyed. 00507_ Med. Laser destroyed. 00510_ B8-0CP(R) suffers critical hit (Smash). 00514_ Aluminum Leg destroyed. Map ----- +----------------------------------------------------+ | ??????????????????????????????????????????????? | | ??????????????????????????????????????????????? | | ??????????????????????????????????????????????? | | ??????????????????????????????????????????????? | | ??????????????????????????????????????????????? | | ??????????????????????????????????????????????? | | ??????????????????????????????????????????????? | | ??????????????????????????????????????????????? | | ??????????????????????????????????????????????? | | ??????????????????????????????????????????????? | | ??????????????????????????????????????????????? | | ??????????????????????????????????????????????? | | ??????????????????????????????????????????????? | | ??????????????????????????????????????????????? | | ??????????????????????????????????????????????? | | ??????????????????#???????????????????????????? | | ????????????????? ###????????????????????????? | | ???????????????# # #???????? ??????????????? | | ???????????????#"" #??????? ??????????????? | | ???????????????#"" ##?????? #??????????????? | | ????????????????#" ??????# #??????????????? | | ????????????????# #??#### #??????????????? | | ????????????????# #??"# ???????????????? | | ???????????????##" ##"## ????????????????? | | ??????????????## """ ;#"## ??####?### ?????? | | ??????????????#""""""#@R# ##?# ## ??????? | | ??????????????# R #?# ???????? | | ??????????????# ## "R# #### ?????????? | | ??????????????# ######## ## #??####?????? | | ??????????????## # ## # #### ##????? | | ???????????????# #????? | | ??????????????# ##???? | | ??????????????# ## #???? | | ??????????????## ##### ## ## #???? | | ???????????????#######???###### ### #???? | | ?????????????????????????????## %%##?# ##???? | | ????????????????????????????## ############? | | ????????????????????????????# #??# #? | | ????????????????????????????# ### #?? | | ???????????????????????????## # #??? | | ???????????????????????????# # #???? | | ???????????????????????????##### ## ### | | ??????????????????????????????# ## | | ??????????????????????????????# | | ??????????????????????????????# | | ??????????????????????????????## | | ???????????????????????????###?## | | ?????????????????####??##### #### | | ?????????????????# ### ## | | ?????????????????# ## | +----------------------------------------------------+ Best States ------------- Heat Dissipation 25 Energy Generation 10 Energy Capacity 125 Matter Stores 300 Matter Capacity 300 Sight Range 16 Terrain Scan Density 10 Evasion (%) 55 Item Schematics ----------------- None Robot Schematics ------------------ None Fabricated ------------ Nothing Repaired ---------- Nothing Studied --------- None Alien Tech Used ----------------- None Achievements -------------- None Challenges ------------ None Game ------ Seed CannonDirectedPick Manual? 0 Play Time 00:06:29 Cumulative 36.4 hours Start 2025.11.29 @ 11:20:45 End 2025.11.29 @ 11:25:44 Sessions 1 Manual Loads 0 Difficulty Rogue Special Mode None Game No. 39 Rogue 39 Adventurer 0 Explorer 0 Win Type - Total 0 Types 0/0/0/0/0/0/0/0/0/0 Lore% 17 Gallery% 33 Achievement% 23 Wizard Run 0 Options --------- Layout 1 ASCII 0 Keyboard 0 Movement Mouse Keybinds 0 Fullscreen 1 Font 24/Smallcaps Map View 50x35 Zoom Use 0% Tactical HUD 1 Map Filters NONE Filters NONE Steam 1 RUN: 9ad243d9-4159-4522-9804-284b024a6a0e